fUSD/lending_fUSD_20260213
["ID","MTS","AMOUNT","RATE_DAILY","PERIOD"]
[405301623,1770970253465,-382.43,0.000287,14]
[405301624,1770970253474,-154.0,0.00028997,14]
[405301625,1770970253484,-2720.78835053,0.00029,120]
[405301626,1770970253494,-758.67575616,0.00029,2]
[405301627,1770970253505,-600.0,0.00029,2]
[405301628,1770970253515,-1011.41,0.000291,7]
[405301629,1770970253524,-1337.0,0.00029394,2]
[405301630,1770970253534,-3488.0,0.00029394,2]
[405301631,1770970253544,-918.0,0.00029394,2]
[405301632,1770970253554,-1498.0641666,0.00029698,2]
[405301633,1770970253564,-150.0,0.00029971,2]
[405301634,1770970253574,-177.81953257,0.0003,120]
[405301635,1770970253583,-2571.54846146,0.0003,120]
[405301636,1770970253594,-1000.0,0.0003,120]
[405301637,1770970253604,-150.0,0.0003,2]
[405301638,1770970253614,-1045.18350317,0.0003,60]
[405301639,1770970253624,-888.00911856,0.0003,3]
[405301640,1770970253634,-152.64,0.0003,2]
[405301641,1770970253645,-152.64,0.0003,2]
[405301642,1770970253655,-152.64,0.0003,2]
[405301643,1770970253665,-152.64,0.0003,2]
[405301644,1770970253676,-152.64,0.0003,2]
[405301645,1770970253686,-152.64,0.0003,2]
[405301646,1770970253696,-152.64,0.0003,2]
[405301647,1770970253706,-152.64,0.0003,2]
[405301648,1770970253716,-152.64,0.0003,2]
[405301649,1770970253727,-152.64,0.0003,2]
[405301650,1770970253736,-152.64,0.0003,2]
[405301651,1770970253746,-152.64,0.0003,2]
[405301652,1770970253757,-152.64,0.0003,2]
[405301653,1770970253767,-152.64,0.0003,2]
[405301654,1770970253777,-152.64,0.0003,2]
[405301655,1770970253787,-662.51665377,0.0003013,2]
[405301656,1770970253797,-500.0,0.00030137,120]
[405301657,1770970253807,-1254.26,0.00030137,2]
[405301658,1770970253816,-155.01,0.00030411,120]
[405301659,1770970253825,-154.0,0.00030447,14]
[405301660,1770970253835,-152.0,0.00030605,3]
[405301661,1770970253845,-1000.0,0.00030736,7]
[405301662,1770970253855,-180.11038915,0.00030755,6]
[405301663,1770970253866,-650.0,0.00031,2]
[405301664,1770970253875,-1000.0,0.0003101,7]
[405301665,1770970253885,-1116.28,0.0003105,30]
[405301666,1770970253894,-300.131051,0.0003118,51]
[405301667,1770970253904,-152.0,0.00031228,4]
[405301668,1770970253916,-1999.0,0.00031284,7]
[405301669,1770970253926,-200.0,0.000314,120]
[405301670,1770970253936,-7735.0,0.00031463,7]
[405301671,1770970253945,-150.0,0.0003147,2]
[405301672,1770970253956,-589.5,0.00031554,30]
[405301673,1770970253965,-152.0,0.00031851,5]
[405301674,1770970253975,-218.1079599,0.00032,7]
[405301675,1770970253985,-1000.0,0.00032,120]
[405301676,1770970253995,-500.0,0.00032027,2]
[405301677,1770970254005,-3354.50490408,0.0003211,2]
[405301678,1770970254014,-1337.0,0.00032394,2]
[405301679,1770970254024,-3488.0,0.00032394,2]
[405301680,1770970254034,-918.0,0.00032394,2]
[405301681,1770970254043,-152.0,0.00032475,6]
[405301682,1770970254053,-500.0,0.00032479,2]
[405301683,1770970254062,-428.97097,0.0003248,2]
[405301684,1770970254071,-1000.0,0.0003263,7]
[405301685,1770970254081,-516.95013076,0.00032876,30]
[405301686,1770970254091,-500.0,0.00032877,120]
[405301687,1770970254100,-345.43,0.00032877,2]
[405301688,1770970254110,-1254.26,0.00032877,2]
[405301689,1770970254119,-300.0,0.00032877,5]
[405301690,1770970254129,-365.85048482,0.00032877,2]
[405301691,1770970254138,-500.0,0.00032877,2]
[405301692,1770970254147,-500.0,0.00032877,2]
[405301693,1770970254157,-500.0,0.00032877,2]
[405301694,1770970254167,-500.0,0.00032877,2]
[405301695,1770970254177,-500.0,0.00032877,2]
[405301696,1770970254187,-639.29,0.000329,14]
[405301697,1770970254196,-1572.86,0.000329,14]
[405301698,1770970254205,-1033.26,0.000329,2]
[405301699,1770970254215,-41943.48,0.000329,14]
[405301700,1770970254225,-1000.151,0.00032927,34]
[405301701,1770970254235,-1011.41,0.00033,14]
[405301702,1770970254246,-537.20222059,0.00033,120]
[405301703,1770970254256,-300.0,0.00033,120]
[405301704,1770970254267,-542.595972,0.00033,8]
[405301705,1770970254277,-700.0,0.00033,2]
[405301706,1770970254287,-683.0,0.00033,2]
[405301707,1770970254297,-150.0,0.00033043,2]
[405301708,1770970254307,-152.0,0.00033098,7]
[405301709,1770970254317,-10397.79,0.00033699,2]
[405301710,1770970254327,-601.10661111,0.00033699,5]
[405301711,1770970254336,-152.0,0.00033722,8]
[405301712,1770970254346,-1000.0,0.00034,120]
[405301713,1770970254356,-41943.48,0.00034,14]
[405301714,1770970254366,-1000.0,0.00034215,2]
[405301715,1770970254376,-1000.0,0.00034215,2]
[405301716,1770970254386,-1000.0,0.00034215,2]
[405301717,1770970254395,-1000.0,0.00034215,2]
[405301718,1770970254406,-1000.0,0.00034215,2]
[405301719,1770970254416,-152.0,0.00034345,9]
[405301720,1770970254427,-150.0,0.00034696,2]
[405301721,1770970254436,-1116.28,0.00034703,30]
[405301722,1770970254446,-1500.0,0.00034795,2]
[405301723,1770970254456,-1572.86,0.000349,14]
[405301724,1770970254466,-1033.26,0.000349,2]
[405301725,1770970254476,-152.0,0.00034968,10]
[405301726,1770970254488,-4974.64518398,0.0003499,120]
[405301727,1770970254498,-624.42112934,0.00035,90]
[405301728,1770970254509,-150.0,0.00035,2]
[405301729,1770970254519,-1000.0,0.00035,120]
[405301730,1770970254529,-300.0,0.00035,120]
[405301731,1770970254540,-524.0,0.00035,30]
[405301732,1770970254551,-750.0,0.00035,2]
[405301733,1770970254562,-639.29,0.000351,14]
[405301734,1770970254572,-1337.0,0.00035394,2]
[405301735,1770970254583,-3488.0,0.00035394,2]
[405301736,1770970254593,-918.0,0.00035394,2]
[405301737,1770970254603,-179.04905926,0.00035589,120]
[405301738,1770970254613,-335.51534635,0.00035589,7]
[405301739,1770970254623,-152.0,0.00035592,11]
[405301740,1770970254634,-1011.41,0.000356,14]
[405301741,1770970254799,-2332.61066288,0.0003561,120]
[405301742,1770970254810,-500.0,0.00035616,120]
[405301743,1770970254820,-2385.0,0.00035616,120]
[405301744,1770970254829,-2367.0,0.00035616,120]
[405301745,1770970254839,-2478.0,0.00035616,120]
[405301746,1770970254849,-1254.26,0.00035616,2]
[405301747,1770970254858,-151.0,0.00035616,31]
[405301748,1770970254867,-151.0,0.00035616,31]
[405301749,1770970254877,-163.720603,0.00035616,31]
[405301750,1770970254886,-2000.0,0.000359,2]
[405301751,1770970254898,-518.4,0.00036,30]
[405301752,1770970254910,-1000.0,0.00036,120]
[405301753,1770970254920,-3000.0,0.00036,30]
[405301754,1770970254930,-1000.0,0.00036,30]
[405301755,1770970254939,-341.0,0.00036,2]
[405301756,1770970254948,-41943.48,0.00036,14]
[405301757,1770970254961,-152.0,0.00036215,12]
[405301758,1770970254971,-150.0,0.0003643,2]
[405301759,1770970254980,-1572.86,0.000366,14]
[405301760,1770970254990,-1033.26,0.000366,2]
[405301761,1770970255000,-518.4,0.0003672,30]
[405301762,1770970255010,-150.76,0.00036771,10]
[405301763,1770970255019,-152.0,0.00036839,13]
[405301764,1770970255029,-500.0,0.00036877,2]
[405301765,1770970255039,-2417.0577,0.00036922,15]
[405301766,1770970255048,-158.441673,0.00036986,31]
[405301767,1770970255058,-158.441673,0.00036986,31]
[405301768,1770970255067,-158.441673,0.00036986,31]
[405301769,1770970255076,-158.441673,0.00036986,31]
[405301770,1770970255086,-158.441673,0.00036986,31]
[405301771,1770970255096,-158.441673,0.00036986,31]
[405301772,1770970255105,-158.441673,0.00036986,31]
[405301773,1770970255115,-158.441673,0.00036986,31]
[405301774,1770970255124,-158.441673,0.00036986,31]
[405301775,1770970255134,-158.441673,0.00036986,31]
[405301776,1770970255144,-158.441673,0.00036986,31]
[405301777,1770970255154,-158.441673,0.00036986,31]
[405301778,1770970255164,-158.441673,0.00036986,31]
[405301779,1770970255174,-158.441673,0.00036986,31]
[405301780,1770970255184,-158.441673,0.00036986,31]
[405301781,1770970255193,-158.441673,0.00036986,31]
[405301782,1770970255203,-158.441673,0.00036986,31]
[405301783,1770970255212,-158.441673,0.00036986,31]
[405301784,1770970255222,-158.441673,0.00036986,31]
[405301785,1770970255231,-158.441677,0.00036986,31]
[405301786,1770970255241,-158.698908,0.00036986,31]
[405301787,1770970255251,-151.0,0.00036986,31]
[405301788,1770970255260,-151.0,0.00036986,31]
[405301789,1770970255270,-204.66933,0.00036986,31]
[405301790,1770970255279,-183.135739,0.00036986,31]
[405301791,1770970255289,-161.725556,0.00036986,31]
[405301792,1770970255298,-151.0,0.00036986,31]
[405301793,1770970255309,-160.530758,0.00036986,31]
[405301794,1770970255319,-155.740293,0.00036986,31]
[405301795,1770970255330,-151.0,0.00036986,31]
[405301796,1770970255339,-176.145963,0.00036986,31]
[405301797,1770970255349,-151.0,0.00036986,31]
[405301798,1770970255359,-151.0,0.00036986,31]
[405301799,1770970255369,-243.003869,0.00036986,31]
[405301800,1770970255379,-151.0,0.00036986,31]
[405301801,1770970255388,-152.959201,0.00036986,31]
[405301802,1770970255398,-151.0,0.00036986,31]
[405301803,1770970255407,-268.00347,0.00036986,31]
[405301804,1770970255417,-161.612271,0.00036986,31]
[405301805,1770970255427,-151.0,0.00036986,31]
[405301806,1770970255436,-151.0,0.00036986,31]
[405301807,1770970255446,-180.494328,0.00036986,31]
[405301808,1770970255456,-189.285564,0.00036986,31]
[405301809,1770970255465,-170.116335,0.00036986,31]
[405301810,1770970255475,-151.0,0.00036986,31]
[405301811,1770970255484,-151.0,0.00036986,31]
[405301812,1770970255494,-153.395525,0.00036986,31]
[405301813,1770970255503,-151.0,0.00036986,31]
[405301814,1770970255513,-153.686361,0.00036986,31]
[405301815,1770970255523,-155.036509,0.00036986,31]
[405301816,1770970255533,-168.30118,0.00036986,31]
[405301817,1770970255542,-151.0,0.00036986,31]
[405301818,1770970255551,-151.0,0.00036986,31]
[405301819,1770970255561,-181.288909,0.00036986,31]
[405301820,1770970255570,-151.0,0.00036986,31]
[405301821,1770970255579,-151.0,0.00036986,31]
[405301822,1770970255589,-151.0,0.00036986,31]
[405301823,1770970255598,-151.0,0.00036986,31]
[405301824,1770970255608,-246.73407,0.00036986,31]
[405301825,1770970255618,-151.0,0.00036986,31]
[405301826,1770970255628,-151.0,0.00036986,31]
[405301827,1770970255638,-151.0,0.00036986,31]
[405301828,1770970255647,-151.0,0.00036986,31]
[405301829,1770970255655,-151.0,0.00036986,31]
[405301830,1770970255663,-151.0,0.00036986,31]
[405301831,1770970255676,-151.0,0.00036986,31]
[405301832,1770970255686,-171.008783,0.00036986,31]
[405301833,1770970255695,-151.0,0.00036986,31]
[405301834,1770970255705,-151.0,0.00036986,31]
[405301835,1770970255714,-151.0,0.00036986,31]
[405301836,1770970255724,-151.0,0.00036986,31]
[405301837,1770970255733,-151.0,0.00036986,31]
[405301838,1770970255743,-151.0,0.00036986,31]
[405301839,1770970255752,-151.0,0.00036986,31]
[405301840,1770970255762,-151.0,0.00036986,31]
[405301841,1770970255771,-151.0,0.00036986,31]
[405301842,1770970255782,-151.0,0.00036986,31]
[405301843,1770970255792,-151.0,0.00036986,31]
[405301844,1770970255803,-151.0,0.00036986,31]
[405301845,1770970255812,-151.0,0.00036986,31]
[405301846,1770970255824,-151.0,0.00036986,31]
[405301847,1770970255834,-151.0,0.00036986,31]
[405301848,1770970255845,-151.0,0.00036986,31]
[405301849,1770970255855,-151.0,0.00036986,31]
[405301850,1770970255864,-151.0,0.00036986,31]
[405301851,1770970255873,-151.0,0.00036986,31]
[405301852,1770970255884,-301.000519,0.00036986,31]
[405301853,1770970255895,-151.0,0.00036986,31]
[405301854,1770970255906,-151.0,0.00036986,31]
[405301855,1770970255917,-151.0,0.00036986,31]
[405301856,1770970255927,-151.0,0.00036986,31]
[405301857,1770970255937,-151.0,0.00036986,31]
[405301858,1770970255947,-151.0,0.00036986,31]
[405301859,1770970255958,-151.0,0.00036986,31]
[405301860,1770970255969,-154.601512,0.00036986,31]
[405301861,1770970255978,-151.0,0.00036986,31]
[405301862,1770970255989,-204.272542,0.00036986,31]
[405301863,1770970256002,-151.0,0.00036986,31]
[405301864,1770970256012,-151.162535,0.00036986,31]
[405301865,1770970256022,-151.0,0.00036986,31]
[405301866,1770970256032,-151.0,0.00036986,31]
[405301867,1770970256042,-261.670843,0.00036986,31]
[405301868,1770970256051,-151.0,0.00036986,31]
[405301869,1770970256061,-151.0,0.00036986,31]
[405301870,1770970256071,-151.0,0.00036986,31]
[405301871,1770970256080,-151.0,0.00036986,31]
[405301872,1770970256090,-151.0,0.00036986,31]
[405301873,1770970256099,-151.0,0.00036986,31]
[405301874,1770970256110,-151.0,0.00036986,31]
[405301875,1770970256120,-151.0,0.00036986,31]
[405301876,1770970256130,-151.0,0.00036986,31]
[405301877,1770970256139,-151.0,0.00036986,31]
[405301878,1770970256151,-152.302548,0.00036986,31]
[405301879,1770970256161,-179.44251,0.00036986,31]
[405301880,1770970256172,-166.959997,0.00036986,31]
[405301881,1770970256183,-151.0,0.00036986,31]
[405301882,1770970256192,-151.647773,0.00036986,31]
[405301883,1770970256201,-151.0,0.00036986,31]
[405301884,1770970256211,-151.0,0.00036986,31]
[405301885,1770970256222,-151.0,0.00036986,31]
[405301886,1770970256232,-151.0,0.00036986,31]
[405301887,1770970256241,-151.0,0.00036986,31]
[405301888,1770970256251,-165.536013,0.00036986,31]
[405301889,1770970256261,-151.0,0.00036986,31]
[405301890,1770970256270,-257.568687,0.00036986,31]
[405301891,1770970256280,-151.0,0.00036986,31]
[405301892,1770970256289,-151.0,0.00036986,31]
[405301893,1770970256300,-153.66688,0.00036986,31]
[405301894,1770970256309,-151.0,0.00036986,31]
[405301895,1770970256319,-166.178113,0.00036986,31]
[405301896,1770970256329,-160.346872,0.00036986,31]
[405301897,1770970256337,-229.673984,0.00036986,31]
[405301898,1770970256346,-151.0,0.00036986,31]
[405301899,1770970256355,-158.507903,0.00036986,31]
[405301900,1770970256363,-191.212227,0.00036986,31]
[405301901,1770970256371,-151.0,0.00036986,31]
[405301902,1770970256380,-158.735065,0.00036986,31]
[405301903,1770970256388,-151.000018,0.00036986,31]
[405301904,1770970256397,-151.0,0.00036986,31]
[405301905,1770970256406,-252.059869,0.00036986,31]
[405301906,1770970256415,-151.0,0.00036986,31]
[405301907,1770970256426,-151.0,0.00036986,31]
[405301908,1770970256436,-177.091513,0.00036986,31]
[405301909,1770970256445,-151.0,0.00036986,31]
[405301910,1770970256454,-163.263235,0.00036986,31]
[405301911,1770970256463,-151.0,0.00036986,31]
[405301912,1770970256472,-234.029245,0.00036986,31]
[405301913,1770970256482,-165.519734,0.00036986,31]
[405301914,1770970256492,-151.0,0.00036986,31]
[405301915,1770970256500,-151.0,0.00036986,31]
[405301916,1770970256510,-151.0,0.00036986,31]
[405301917,1770970256520,-151.0,0.00036986,31]
[405301918,1770970256529,-151.0,0.00036986,31]
[405301919,1770970256542,-151.0,0.00036986,31]
[405301920,1770970256556,-151.0,0.00036986,31]
[405301921,1770970256570,-151.0,0.00036986,31]
[405301922,1770970256583,-295.086623,0.00036986,31]
[405301923,1770970256594,-151.0,0.00036986,31]
[405301924,1770970256606,-245.468131,0.00036986,31]
[405301925,1770970256619,-162.873119,0.00036986,31]
[405301926,1770970256631,-151.0,0.00036986,31]
[405301927,1770970256643,-151.0,0.00036986,31]
[405301928,1770970256654,-151.0,0.00036986,31]
[405301929,1770970256666,-151.0,0.00036986,31]
[405301930,1770970256679,-222.517375,0.00036986,31]
[405301931,1770970256690,-151.0,0.00036986,31]
[405301932,1770970256701,-151.0,0.00036986,31]
[405301933,1770970256712,-151.0,0.00036986,31]
[405301934,1770970256722,-264.185097,0.00036986,31]
[405301935,1770970256733,-282.243673,0.00036986,31]
[405301936,1770970256746,-151.0,0.00036986,31]
[405301937,1770970256759,-166.421285,0.00036986,31]
[405301938,1770970256771,-1536.992956,0.00036986,31]
[405301939,1770970256784,-1536.992956,0.00036986,31]
[405301940,1770970256797,-1536.992956,0.00036986,31]
[405301941,1770970256810,-1536.992956,0.00036986,31]
[405301942,1770970256823,-1536.992956,0.00036986,31]
[405301943,1770970256835,-219.056588,0.00036986,31]
[405301944,1770970256848,-1536.992956,0.00036986,31]
[405301945,1770970256861,-1536.992956,0.00036986,31]
[405301946,1770970256873,-1536.992956,0.00036986,31]
[405301947,1770970256885,-1536.992956,0.00036986,31]
[405301948,1770970256897,-1536.992956,0.00036986,31]
[405301949,1770970256909,-1536.992956,0.00036986,31]
[405301950,1770970256924,-1536.992956,0.00036986,31]
[405301951,1770970256936,-1536.992956,0.00036986,31]
[405301952,1770970256950,-1536.992956,0.00036986,31]
[405301953,1770970256963,-1536.992956,0.00036986,31]
[405301954,1770970256977,-1536.992956,0.00036986,31]
[405301955,1770970256991,-1536.992956,0.00036986,31]
[405301956,1770970257004,-777.891807,0.00036986,31]
[405301957,1770970257014,-1536.992956,0.00036986,31]
[405301958,1770970257025,-777.891807,0.00036986,31]
[405301959,1770970257036,-1536.992956,0.00036986,31]
[405301960,1770970257048,-1536.99295,0.00036986,31]
[405301961,1770970257062,-777.891807,0.00036986,31]
[405301962,1770970257074,-777.891807,0.00036986,31]
[405301963,1770970257084,-777.891807,0.00036986,31]
[405301964,1770970257095,-777.891807,0.00036986,31]
[405301965,1770970257105,-777.891807,0.00036986,31]
[405301966,1770970257116,-777.891807,0.00036986,31]
[405301967,1770970257129,-777.891807,0.00036986,31]
[405301968,1770970257142,-777.891807,0.00036986,31]
[405301969,1770970257154,-777.891807,0.00036986,31]
[405301970,1770970257164,-777.891807,0.00036986,31]
[405301971,1770970257175,-777.891807,0.00036986,31]
[405301972,1770970257187,-777.891807,0.00036986,31]
[405301973,1770970257197,-777.891807,0.00036986,31]
[405301974,1770970257208,-777.891807,0.00036986,31]
[405301975,1770970257219,-777.891807,0.00036986,31]
[405301976,1770970257230,-777.891807,0.00036986,31]
[405301977,1770970257240,-777.891807,0.00036986,31]
[405301978,1770970257251,-777.891808,0.00036986,31]
[405301979,1770970257262,-173.973553,0.00036986,31]
[405301980,1770970257273,-1064.550733,0.00036986,31]
[405301981,1770970257284,-1064.550733,0.00036986,31]
[405301982,1770970257295,-1064.550733,0.00036986,31]
[405301983,1770970257307,-1064.550733,0.00036986,31]
[405301984,1770970257318,-1064.550733,0.00036986,31]
[405301985,1770970257330,-1064.550733,0.00036986,31]
[405301986,1770970257342,-1064.550733,0.00036986,31]
[405301987,1770970257355,-1064.550733,0.00036986,31]
[405301988,1770970257366,-1064.550733,0.00036986,31]
[405301989,1770970257378,-1064.550733,0.00036986,31]
[405301990,1770970257389,-1064.550733,0.00036986,31]
[405301991,1770970257401,-1064.550733,0.00036986,31]
[405301992,1770970257414,-1064.550733,0.00036986,31]
[405301993,1770970257427,-1064.550733,0.00036986,31]
[405301994,1770970257438,-155.360449,0.00036986,31]
[405301995,1770970257450,-1064.550733,0.00036986,31]
[405301996,1770970257463,-1064.550733,0.00036986,31]
[405301997,1770970257475,-1064.550733,0.00036986,31]
[405301998,1770970257487,-1064.550733,0.00036986,31]
[405301999,1770970257499,-1064.550733,0.00036986,31]
[405302000,1770970257511,-1064.550737,0.00036986,31]
[405302001,1770970257522,-151.0,0.00036986,31]
[405302002,1770970257533,-151.0,0.00036986,31]
[405302003,1770970257544,-151.0,0.00036986,31]
[405302004,1770970257555,-162.758638,0.00036986,31]
[405302005,1770970257567,-151.0,0.00036986,31]
[405302006,1770970257579,-151.0,0.00036986,31]
[405302007,1770970257590,-1028.662613,0.00036986,31]
[405302008,1770970257601,-151.0,0.00036986,31]
[405302009,1770970257611,-210.968183,0.00036986,31]
[405302010,1770970257623,-1028.662613,0.00036986,31]
[405302011,1770970257634,-151.0,0.00036986,31]
[405302012,1770970257644,-1028.662613,0.00036986,31]
[405302013,1770970257655,-151.0,0.00036986,31]
[405302014,1770970257666,-1028.662613,0.00036986,31]
[405302015,1770970257677,-151.0,0.00036986,31]
[405302016,1770970257688,-1028.662613,0.00036986,31]
[405302017,1770970257699,-151.0,0.00036986,31]
[405302018,1770970257709,-1028.662613,0.00036986,31]
[405302019,1770970257721,-151.0,0.00036986,31]
[405302020,1770970257733,-1028.662613,0.00036986,31]
[405302021,1770970257744,-151.0,0.00036986,31]
[405302022,1770970257755,-1028.662613,0.00036986,31]
[405302023,1770970257766,-151.0,0.00036986,31]
[405302024,1770970257777,-1028.662613,0.00036986,31]
[405302025,1770970257788,-151.0,0.00036986,31]
[405302026,1770970257799,-1028.662613,0.00036986,31]
[405302027,1770970257811,-151.0,0.00036986,31]
[405302028,1770970257822,-1028.662613,0.00036986,31]
[405302029,1770970257835,-215.43284,0.00036986,31]
[405302030,1770970257846,-1028.662613,0.00036986,31]
[405302031,1770970257857,-1028.662613,0.00036986,31]
[405302032,1770970257870,-1028.662613,0.00036986,31]
[405302033,1770970257882,-1028.662613,0.00036986,31]
[405302034,1770970257895,-151.0,0.00036986,31]
[405302035,1770970257906,-1028.662613,0.00036986,31]
[405302036,1770970257919,-158.822012,0.00036986,31]
[405302037,1770970257938,-1028.662613,0.00036986,31]
[405302038,1770970257956,-1028.662613,0.00036986,31]
[405302039,1770970257969,-1028.662613,0.00036986,31]
[405302040,1770970257982,-1028.662606,0.00036986,31]
[405302041,1770970257997,-151.0,0.00036986,31]
[405302042,1770970258012,-151.0,0.00036986,31]
[405302043,1770970258026,-151.0,0.00036986,31]
[405302044,1770970258040,-157.558412,0.00036986,31]
[405302045,1770970258053,-154.058843,0.00036986,31]
[405302046,1770970258067,-151.0,0.00036986,7]
[405302047,1770970258080,-151.0,0.00036986,7]
[405302048,1770970258095,-151.0,0.00036986,7]
[405302049,1770970258109,-151.0,0.00036986,7]
[405302050,1770970258124,-151.0,0.00036986,7]
[405302051,1770970258138,-151.0,0.00036986,7]
[405302052,1770970258150,-151.0,0.00036986,7]
[405302053,1770970258160,-243.320913,0.00036986,7]
[405302054,1770970258170,-151.0,0.00036986,31]
[405302055,1770970258182,-151.0,0.00036986,31]
[405302056,1770970258192,-151.0,0.00036986,31]
[405302057,1770970258202,-151.0,0.00036986,31]
[405302058,1770970258213,-151.0,0.00036986,31]
[405302059,1770970258223,-151.0,0.00036986,31]
[405302060,1770970258232,-151.0,0.00036986,31]
[405302061,1770970258242,-151.0,0.00036986,31]
[405302062,1770970258252,-151.0,0.00036986,31]
[405302063,1770970258263,-151.0,0.00036986,31]
[405302064,1770970258273,-151.0,0.00036986,31]
[405302065,1770970258283,-167.071536,0.00036986,31]
[405302066,1770970258293,-151.0,0.00036986,31]
[405302067,1770970258303,-295.432605,0.00036986,31]
[405302068,1770970258313,-151.0,0.00036986,31]
[405302069,1770970258323,-201.089528,0.00036986,31]
[405302070,1770970258333,-151.0,0.00036986,31]
[405302071,1770970258342,-151.0,0.00036986,31]
[405302072,1770970258351,-151.0,0.00036986,31]
[405302073,1770970258361,-151.0,0.00036986,31]
[405302074,1770970258370,-151.0,0.00036986,31]
[405302075,1770970258380,-151.0,0.00036986,31]
[405302076,1770970258390,-151.0,0.00036986,31]
[405302077,1770970258400,-295.841741,0.00036986,31]
[405302078,1770970258410,-189.91211,0.00036986,31]
[405302079,1770970258420,-189.91211,0.00036986,31]
[405302080,1770970258431,-189.91211,0.00036986,31]
[405302081,1770970258441,-189.91211,0.00036986,31]
[405302082,1770970258452,-189.91211,0.00036986,31]
[405302083,1770970258462,-189.91211,0.00036986,31]
[405302084,1770970258471,-189.91211,0.00036986,31]
[405302085,1770970258480,-189.91211,0.00036986,31]
[405302086,1770970258490,-189.91211,0.00036986,31]
[405302087,1770970258502,-189.91211,0.00036986,31]
[405302088,1770970258513,-189.91211,0.00036986,31]
[405302089,1770970258523,-151.0,0.00036986,31]
[405302090,1770970258533,-151.0,0.00036986,31]
[405302091,1770970258543,-189.91211,0.00036986,31]
[405302092,1770970258555,-159.726786,0.00036986,31]
[405302093,1770970258567,-189.91211,0.00036986,31]
[405302094,1770970258578,-189.91211,0.00036986,31]
[405302095,1770970258588,-189.91211,0.00036986,31]
[405302096,1770970258598,-189.91211,0.00036986,31]
[405302097,1770970258902,-189.91211,0.00036986,31]
[405302098,1770970258923,-189.91211,0.00036986,31]
[405302099,1770970258939,-189.91211,0.00036986,31]
[405302100,1770970258949,-189.912116,0.00036986,31]
[405302101,1770970258959,-161.324312,0.00036986,31]
[405302102,1770970258968,-161.324312,0.00036986,31]
[405302103,1770970258978,-161.324312,0.00036986,31]
[405302104,1770970258988,-161.324312,0.00036986,31]
[405302105,1770970258999,-161.324312,0.00036986,31]
[405302106,1770970259009,-161.324312,0.00036986,31]
[405302107,1770970259019,-161.324312,0.00036986,31]
[405302108,1770970259030,-161.324312,0.00036986,31]
[405302109,1770970259040,-151.0,0.00036986,31]
[405302110,1770970259050,-161.324312,0.00036986,31]
[405302111,1770970259059,-151.0,0.00036986,31]
[405302112,1770970259068,-161.324312,0.00036986,31]
[405302113,1770970259078,-151.0,0.00036986,31]
[405302114,1770970259089,-161.324312,0.00036986,31]
[405302115,1770970259100,-151.0,0.00036986,31]
[405302116,1770970259109,-161.324312,0.00036986,31]
[405302117,1770970259119,-151.0,0.00036986,31]
[405302118,1770970259128,-161.324312,0.00036986,31]
[405302119,1770970259137,-151.0,0.00036986,31]
[405302120,1770970259147,-161.324312,0.00036986,31]
[405302121,1770970259156,-161.324312,0.00036986,31]
[405302122,1770970259167,-151.0,0.00036986,31]